Cogmind - Beta 14 @@@ ROGUE MODE // 2024.09.28 @ 10:14:39 Player: Kinga Result: Destroyed by YI-UF0 with YI-UF0's Doublenader Performance ------------- Evolutions (1) 500 Regions Visited (4) 800 Robots Destroyed (32) 160 Value Destroyed (714) 714 Prototype IDs (2) 40 Alien Tech Used (0) 0 Bonus (10) 10 TOTAL SCORE: 2224 Bonus ------- Follower Combat Kills 35 Friendly Fire -25 Cogmind --------- Core Integrity 0/400 Matter 256/300 Energy 100/100 System Corruption 6% Temperature Cool (0) Movement Treading (240) Ox1 Location -9/Mines Parts ------- > --- POWER (1) -------- (None) > --- PROPULSION (2) --- Light Treads > --- UTILITY (3) ------ Improved Heat Sink Large Storage Unit Terrain Scanner > --- WEAPON (3) ------- Improved Light Cannon > --- INVENTORY (15) --- Light Treads Light Treads Compact Wheel Compact Wheel Terrain Scanner Terrain Scan Processor Mining Laser Axe Peak State ------------ > --- POWER ------------ Ion Engine > --- PROPULSION ------- Light Treads Light Treads > --- UTILITY ---------- Improved Heat Sink Small Storage Unit Hardened Medium Armor Plating > --- WEAPON ----------- Small Laser Beam Rifle Particle Gun > --- INVENTORY -------- Nuclear Core Compact Wheel Compact Wheel Terrain Scanner Improved Light Cannon Axe [Rating: 16] Favorites ----------- Power Ion Engine Engine Ion Engine Power Core Light Nuclear Core Propulsion Light Treads Treads Light Treads Utility Improved Heat Sink Device Improved Heat Sink Storage Small Storage Unit Processor Targeting Computer Protection Hardened Medium Armor Plating Weapon Small Laser Energy Gun Small Laser Ballistic Cannon Light Cannon Build | -11 -10 -10 -9 -9 ------- Run | Yrd Mat Min Mat Min Slots Evolved 2 | . . . 2 . Power . | . . . . . Propulsion . | . . . . . Utility 1 | . . . 1 . Weapon 1 | . . . 1 . Parts Attached 31 | 7 2 2 9 11 Power 4 | 1 1 . 1 1 Engine 2 | 1 . . 1 . Core 2 | . 1 . . 1 Reactor . | . . . . . Propulsion 8 | 2 . . 2 4 Treads 8 | 2 . . 2 4 Leg . | . . . . . Wheel . | . . . . . Hover . | . . . . . Flight . | . . . . . Utility 9 | 1 1 1 3 3 Device 3 | . 1 . 1 1 Storage 2 | 1 . . 1 . Processor 1 | . . . . 1 Hackware . | . . . . . Protection 3 | . . 1 1 1 Artifact . | . . . . . Weapon 10 | 3 . 1 3 3 Energy Gun 8 | 3 . 1 3 1 Energy Cannon . | . . . . . Ballistic Gun . | . . . . . Ballistic Cannon 2 | . . . . 2 Launcher . | . . . . . Special Weapon . | . . . . . Impact Weapon . | . . . . . Slashing Weapon . | . . . . . Piercing Weapon . | . . . . . Special Melee Weapon . | . . . . . Unidentified Prototypes . | . . . . . Parts Lost 20 | . 1 1 7 11 Power 4 | . 1 . 1 2 Propulsion 5 | . . . 2 3 Utility 3 | . . . 1 2 Weapon 8 | . . 1 3 4 Highest Loss Streak 5 | . 1 1 3 5 To Critical Strikes . | . . . . . Average Slot Usage (%) 92 | . 93 100 91 88 Engine 4 | . 3 . 10 2 Core 7 | . 9 14 . 8 Treads 23 | . 28 28 19 21 Device 9 | . 9 . 11 13 Storage 12 | . 14 14 11 11 Protection 8 | . . 13 10 6 Energy Gun 24 | . 28 28 27 18 Ballistic Cannon 2 | . . . . 5 Peak Build Rating 16 | 6 9 12 16 16 Average Rating 12 | 5 7 11 14 14 On Entrance 8 | . 6 9 12 13 Naked Turns . | . . . . . Heaviest Build 41 | 11 14 21 41 41 Greatest Support 40 | 40 40 40 40 40 Greatest Overweight (x) 1 | . . . 1 1 Average Overweight (x) . | . . . . . Largest Inventory Capacity 15 | 8 8 8 15 15 Average Capacity 11 | 7 8 8 11 15 Most Carried 13 | 5 5 8 13 13 Average Carried 7 | 2 4 7 8 10 Final Capacity 15 | 8 8 8 15 15 Final Carried 12 | 5 4 7 12 8 Class Distribution -------------------- 69% | Mutant 20% | Scavenger-Tank 7% | Tank Dominant Class ---------------- Mutant | -10/Materials Mutant | -10/Mines Scavenger-Tank | -9/Materials Mutant | -9/Mines Resources | -11 -10 -10 -9 -9 ----------- Run | Yrd Mat Min Mat Min Matter Collected 611 | 268 20 20 94 209 Remotely . | . . . . . Salvage Created 1266 | 94 191 117 601 263 Parts 67 | 3 9 5 33 17 Haulers Intercepted 3 | . . . 3 . Recyclers Shooed 2 | . . . 2 . Parts Field Recycled . | . . . . . Retrieved Matter . | . . . . . Parts Self-Destructed . | . . . . . Prevented . | . . . . . Kills | -11 -10 -10 -9 -9 ------- Run | Yrd Mat Min Mat Min Combat Hostiles Destroyed 28 | . 4 5 6 13 Melee 1 | . . 1 . . Guns 22 | . 3 4 5 10 Cannons 3 | . . . . 3 Classes Destroyed 9 | 1 1 1 3 3 Worker 2 | . . . 2 . Builder 1 | . . . . 1 Hauler 3 | . . . 3 . Recycler 3 | 1 . . 2 . Swarmer 8 | . . 3 1 4 Grunt 12 | . 4 2 3 3 Sentry 2 | . . . 2 . Demolisher 1 | . . . . 1 Assembled 5 | . . . . 5 Best Kill Streak 4 | 1 2 3 3 4 Combat Bots Only 4 | . 2 3 1 4 Max Kills in Single Turn 2 | 1 1 1 1 2 Gunslinging 1 | . . . . 1 Exploded . | . . . . . Melee 1 | . . 1 . . Uniques/NPCs Destroyed . | . . . . . Combat | -11 -10 -10 -9 -9 -------- Run | Yrd Mat Min Mat Min Hostile Shots Fired 246 | . 38 31 92 85 Missed 65 | . 9 8 30 18 Damage Taken 2808 | . 393 273 782 1360 Core 579 | . 124 46 56 353 Absorbed by Shields . | . . . . . Core Remaining (%) 66 | 100 . 32 . . Volleys Fired 149 | 3 24 12 61 49 Largest 3 | 2 2 2 3 3 Hottest 186 | 90 90 90 161 186 Shots Fired 290 | 6 47 24 118 95 Gun 268 | 6 47 24 118 73 Cannon 22 | . . . . 22 Launcher . | . . . . . Special . | . . . . . Kinetic 22 | . . . . 22 Thermal 268 | 6 47 24 118 73 Explosive . | . . . . . Electromagnetic . | . . . . . Robot Hit Streak 8 | 5 7 8 8 8 Robot Miss Streak 5 | . 4 2 5 3 Penetration Max . | . . . . . Secondary Targets 7 | . . 2 . 5 Max Gunslinging Chain 1 | . . 1 . 1 Shots Hit Robots 176 | 5 30 17 70 54 Core Hits 67 | 2 8 7 25 25 Critical Kills . | . . . . . Critical Parts Destroyed . | . . . . . Critical Strikes 6 | 1 1 1 . 3 Burn 4 | 1 1 1 . 1 Blast 2 | . . . . 2 Melee Attacks . | . . . . . Impact . | . . . . . Slashing . | . . . . . Piercing . | . . . . . Sneak Attacks . | . . . . . Combat Hostiles . | . . . . . Follow-up Attacks . | . . . . . Damage Inflicted 2422 | 70 384 199 896 873 Guns 2156 | 61 377 195 896 627 Cannons 245 | . . . . 245 Explosions . | . . . . . Melee . | . . . . . Ramming 21 | 9 7 4 . 1 Kinetic 245 | . . . . 245 Thermal 2156 | 61 377 195 896 627 Explosive . | . . . . . Electromagnetic . | . . . . . Impact . | . . . . . Slashing . | . . . . . Piercing . | . . . . . Highest Corruption 6 | . . . 6 6 Average Corruption 5 | . . . 3 6 Corruption Purged . | . . . . . Corruption Blocked . | . . . . . Effects 34 | . . . 12 22 Message Errors 11 | . . . 5 6 Matter Fused 9 | . . . 3 6 Heat Flow Errors 4 | . . . 2 2 Energy Discharges 1 | . . . . 1 Parts Rejected 2 | . . . . 2 Data Loss (minor) 2 | . . . . 2 Data Loss (major) 1 | . . . 1 . Misfires 3 | . . . 1 2 Alerts 1 | . . . . 1 Overload Shots . | . . . . . Overflow Damage . | . . . . . Projectiles . | . . . . . Explosions . | . . . . . Melee . | . . . . . Knockbacks 3 | . . . . 3 Impact . | . . . . . Kinetic 3 | . . . . 3 Secondary . | . . . . . Self-Inflicted Damage . | . . . . . Shots . | . . . . . Rammed 8 | 2 2 1 . 3 Targets Rammed 9 | 2 2 2 . 3 Kicked . | . . . . . Crushed 1 | . . 1 . . Highest Temperature 479 | 90 265 446 479 378 Average Temperature 120 | 48 107 195 115 99 Received Heat Transfer 875 | . 252 114 405 104 Effects 9 | . . 3 5 1 Shutdowns 2 | . . 1 1 . Interference 6 | . . 2 4 . Matter Decay 1 | . . . . 1 Siege Activations . | . . . . . Robots Corrupted . | . . . . . Combat Hostiles . | . . . . . Parts Fried . | . . . . . Impact Corruptions . | . . . . . Robots Melted 2 | . 1 . 1 . Combat Hostiles 2 | . 1 . 1 . Parts Melted 6 | 1 2 . . 3 Heat Transferred 5634 | 235 1066 595 2147 1591 Parts Sabotaged . | . . . . . Parts Stolen . | . . . . . Parts Stripped . | . . . . . Power Chain Reactions . | . . . . . Alert | -11 -10 -10 -9 -9 ------- Run | Yrd Mat Min Mat Min Peak Influence 163 | 5 119 110 163 153 Initial 48 | . 3 46 42 48 Average 61 | 1 52 45 61 82 Maximum Alert Level . | . . . . . Low Security (%) 100 | 100 100 100 100 100 Level 1 . | . . . . . Level 2 . | . . . . . Level 3 . | . . . . . Level 4 . | . . . . . Level 5 . | . . . . . High Security . | . . . . . Max Security . | . . . . . Squads Dispatched 4 | . 2 . . 2 Investigation 1 | . 1 . . . Extermination . | . . . . . Reinforcement 2 | . 1 . . 1 Assault 1 | . . . . 1 Garrison . | . . . . . Intercept . | . . . . . Searches Triggered . | . . . . . Construction Impeded 1 | . . . . 1 Haulers Reinforced . | . . . . . Active Scanning Responses . | . . . . . Cargo Convoy Interrupts . | . . . . . Stealth | -11 -10 -10 -9 -9 --------- Run | Yrd Mat Min Mat Min Distress Signals 3 | . 1 . 1 1 Communications Jammed . | . . . . . Distress Signals . | . . . . . Times Spotted 50 | . 4 5 22 19 Peak Tracking Total 6 | . 2 3 6 4 Tactical Retreats 2 | . . . 2 . Traps | -11 -10 -10 -9 -9 ------- Run | Yrd Mat Min Mat Min Traps Triggered 6 | . 1 1 4 . Indirectly . | . . . . . Trap Hack Attempts . | . . . . . Triggered . | . . . . . Disarmed . | . . . . . Reprogrammed . | . . . . . Reused . | . . . . . Traps Extracted . | . . . . . Installed . | . . . . . Triggered . | . . . . . Machines | -11 -10 -10 -9 -9 ---------- Run | Yrd Mat Min Mat Min Machines Disabled . | . . . . . Max in Single Turn . | . . . . . Machines Repaired . | . . . . . Machines Dismantled . | . . . . . Machines Sabotaged . | . . . . . Overloaded Fab Kills . | . . . . . Hacking | -11 -10 -10 -9 -9 --------- Run | Yrd Mat Min Mat Min Machines Accessed 3 | . 1 1 1 . Terminals 2 | . 1 . 1 . Fabricators . | . . . . . Repair Stations . | . . . . . Recycling Units . | . . . . . Scanalyzers . | . . . . . Garrison Access . | . . . . . Total Hacks 5 | . 2 1 2 . Successful 4 | . 2 1 1 . Failed 1 | . . . 1 . Catastrophic . | . . . . . Database Lockouts . | . . . . . Manual 1 | . 1 . . . Terminals 4 | . 2 . 2 . Fabricators . | . . . . . Repair Stations . | . . . . . Recycling Units . | . . . . . Scanalyzers . | . . . . . Garrison Access . | . . . . . Terminal Hacks 4 | . 2 1 1 . Record 1 | . . . 1 . Prototype ID Bank 1 | . 1 . . . Open Door 1 | . . 1 . . Hauler Manifests 1 | . 1 . . . Fabricator Hacks . | . . . . . Repair Station Hacks . | . . . . . Recycling Unit Hacks . | . . . . . Scanalyzer . | . . . . . Garrison Access Hacks . | . . . . . Unauthorized Hacks . | . . . . . Terminals . | . . . . . Fabricators . | . . . . . Repair Stations . | . . . . . Recycling Units . | . . . . . Scanalyzers . | . . . . . Garrison Access . | . . . . . Data Cores Recovered . | . . . . . Used . | . . . . . Hacking Detections 2 | . 1 . 1 . Full Trace Events . | . . . . . Feedback Events . | . . . . . Feedback Blocked . | . . . . . Robot Schematics Acquired . | . . . . . Robots Built . | . . . . . Authchips . | . . . . . Time . | . . . . . Total Robot Build Rating . | . . . . . Part Schematics Acquired . | . . . . . Parts Built . | . . . . . Authchips . | . . . . . Time . | . . . . . Total Part Build Rating . | . . . . . Parts Repaired . | . . . . . Time . | . . . . . Parts Recycled . | . . . . . Recycled Matter . | . . . . . Retrieved Matter . | . . . . . Retrieved Components . | . . . . . Parts Scanalyzed . | . . . . . Part Schematics Acquired . | . . . . . Parts Damaged . | . . . . . Bothacking | -11 -10 -10 -9 -9 ------------ Run | Yrd Mat Min Mat Min Used RIF Installer . | . . . . . Robots Hacked . | . . . . . Non-combat . | . . . . . Combat . | . . . . . Robot Hacks Applied . | . . . . . Relay Couplers Released . | . . . . . Fabnet Peak Effective % . | . . . . . Robots Rewired . | . . . . . Allies Hacked . | . . . . . Hacks Repelled . | . . . . . Allies | -11 -10 -10 -9 -9 -------- Run | Yrd Mat Min Mat Min Total Allies 2 | . . . . 2 Largest Group 1 | . . . . 1 Highest-Rated Group 31 | . . . . 31 Highest-Rated Ally 31 | . . . . 31 Total Orders . | . . . . . Ally Attacks 20 | . . . . 20 Total Damage 311 | . . . . 311 Kills 4 | . . . . 4 Allies Corrupted . | . . . . . Allies Melted . | . . . . . Intel | -11 -10 -10 -9 -9 ------- Run | Yrd Mat Min Mat Min Robot Analysis Total . | . . . . . Derelict Logs Recovered 3 | . . 2 . 1 Drone Launches . | . . . . . Drone Recoveries . | . . . . . Exploration | -11 -10 -10 -9 -9 ------------- Run | Yrd Mat Min Mat Min Turns Passed 2552 | 106 275 550 769 852 Spaces Moved 1149 | 51 118 305 306 369 Core 2 | 2 . . . . Treads 1147 | 49 118 305 306 369 Legs . | . . . . . Wheels . | . . . . . Hover . | . . . . . Flight . | . . . . . Fastest Speed 50 | 50 160 160 160 160 Average Speed 173 | 155 160 160 190 178 Slowest Speed 240 | 160 160 160 240 240 Overloaded Moves . | . . . . . Propulsion Burnouts . | . . . . . Robots Hopped . | . . . . . Cave-ins Triggered . | . . . . . Exploration Rate (%) 43 | 4 37 62 31 83 Regions Visited 4 Branch Regions 2 Pre-discovered Areas . | . . . . . Known Exits Taken . | . . . . . Unknown Exits Taken 4 | 1 1 1 1 . Scrap Searched 3 | . . 1 . 2 Spaces Dug . | . . . . . Terrain Destroyed 4 | . . . . 4 Melee . | . . . . . Projectile 4 | . . . . 4 AOE . | . . . . . Terrain Rammed . | . . . . . Walls Destroyed . | . . . . . Machines Disabled . | . . . . . Actions | -11 -10 -10 -9 -9 --------- Run | Yrd Mat Min Mat Min Total 1428 | 68 156 341 393 470 Wait 70 | . 10 17 7 36 Move 1146 | 51 117 304 305 369 Hop . | . . . . . Pick Up 21 | 6 . 4 9 2 Fast Attach 16 | 5 2 . 5 4 Attach 11 | 1 . 1 3 6 Detach . | . . . . . Swap 4 | 1 . 1 1 1 Drop 3 | . 1 . 2 . Fire 149 | 3 24 12 61 49 Melee . | . . . . . Ram . | . . . . . Kick . | . . . . . Crush 8 | 1 2 2 . 3 Escape Stasis . | . . . . . Rewire . | . . . . . Trap . | . . . . . Miscellaneous . | . . . . . Route ------- -11/Scrapyard -10/Materials -10/Mines -9/Materials -9/Mines (discovered 1 exit: [*Mat]) History --------- Turn | Location | Event 22 | -11/Scrapyard | Discovered new exit (range 15) 107 | -11/Scrapyard | Entered Materials 302 | -10/Materials | Build established: Mutant 358 | -10/Materials | Discovered new exit (range 16) 382 | -10/Materials | Entered Mines 388 | -10/Mines | Met a Derelict who couldn't figure out how to use a Trap Extractor 390 | -10/Mines | Core integrity fell below 50% 509 | -10/Mines | Learned Materials machine intel 526 | -10/Mines | Found a hidden stash of uninstalled traps 643 | -10/Mines | A weapon hastily lodged in a ceiling crevice suddenly fell to the ground 823 | -10/Mines | Discovered new exit (range 13) 861 | -10/Mines | Learned 2 Materials zone layouts 932 | -10/Mines | Entered Materials 932 | -9/Materials | Evolved 2 slots: Utility x1, Weapon x1 934 | -9/Materials | Loaded intel: 68 machine locations 1003 | -9/Materials | Lost 3 parts (1p1n1w) 1615 | -9/Materials | Build established: Scavenger-Tank 1618 | -9/Materials | Discovered new exit (range 15) 1701 | -9/Materials | Entered Mines 1858 | -9/Mines | Assembled infested the area 1932 | -9/Mines | Lost 5 parts (1p2n1u1w) 1972 | -9/Mines | Received a Mining Laser from a helpful Derelict 2007 | -9/Mines | Discovered new exit (range 15) 2192 | -9/Mines | Build established: Mutant 2308 | -9/Mines | Core integrity fell below 50% 2355 | -9/Mines | Lost 3 parts (1u2w) 2417 | -9/Mines | Learned Materials stockpile data 2474 | -9/Mines | Met a Derelict testing a Signal Generator 2546 | -9/Mines | Core integrity fell below 20% 2553 | -9/Mines | Destroyed by YI-UF0 with YI-UF0's Doublenader Last Messages --------------- assault force. 02490_ ZU-3N8(g): "Okay, I guess that means it works. Now let's get out of here!" 02492_ Signal Generator broadcasts a burst of procedurally generated transmissions. 02492_ ALERT: Intercepting significant anomalous signal. Redirecting assault force. 02509_ System corrupted: Component data lost. 02510_ ALERT: Intercepting significant anomalous signal. Redirecting assault force. 02537_ Lgt. Treads destroyed. 02537_ ZU-3N8(g) destroyed. 02540_ The unstable cave ceiling collapses. 02546_ YI-UF0 Carbon-fiber Leg blasted off. 02546_ YI-UF0 knocked back. 02549_ Destroyed Imp. Deuterium Engine. 02550_ The unstable cave ceiling collapses. 02551_ Lgt. Cannon destroyed. 02553_ The unstable cave ceiling collapses. 02553_ Nuclear Core destroyed. Map ----- +----------------------------------------------------+ | ??????????## % # #?????????????????? | | ??????????# % ####?????????????????? | | ??????????# % #??????????????????? | | ????####### % # #????????????????? | | ???## # #????????????????? | | ???# " #????????????????? | | ???# "" #????????????????? | | ???# % ###????????????????? | | ???# ###??????????????????? | | ???## % %#????????????????????? | | ????# ## #???????????????????? | | ??#?# ### ###???????????????????? | | ????# #?## ???????????????????? | | ????# #??## % #???????????????????? | | ????# #??? # g ???????????????????? | | ????# #???## = ##??????????????###?? | | ????# #????# #??#????????#?## ##? | | ????# #????## #?????? ###?## #? | | ????# #????? ?????? * #?# #? | | ????# #????? #### = ?# #?# #?? | | ?#??# #?????# # !== ???# #?# #??? | | ????# #?????## # ? ???# ### ##??# | | ????# ####### # ####??## ## ##???# | | ????# # # #?### ## ##???# | | ????###### # ### # #???? | | ?????????# @ #### # #???? | | ?????????### ### # ## ##?## | | ??#???????# ### # # ### | | #?????????# #### # | | ??????????### ##??# # # # | | ????#???????## < #???# # ### | | ???????????#### ####??### | | ????????#??# ##??????## # ### | | ????????#??# #????????#######?# | | ????????#??###### #?????#??????????# # | | ?????#????####??# #????????????????# ## | | ????#????## #### #??????????#????# ##? | | ?????????# #????????#?????? ##?? | | ????#??#?# #####??##??????????# #??? | | ????????## #???????#??????????# ??? | | ??#???### #??????????????????## ??? | | ??????# = #????????#??????????# ??? | | ????#?# & ##???????????????????## ??? | | ?#????# ##?#???????????????????# ??? | | ??????# ##???????????????????????# ??? | | ?#????# ##?????????????????????????#??? | | ??????#####?????#???????????????????????? | | ????????????????????????????????????????? | | ????????????????????????????????????????? | | ????????????????????????????????????????? | +----------------------------------------------------+ Best States ------------- Heat Dissipation 42 Energy Generation 14 Energy Capacity 250 Matter Stores 300 Matter Capacity 300 Sight Range 16 Terrain Scan Range 14 Terrain Scan Density 10 Armor Coverage 225 Evasion (%) 40 Targeting Accuracy 5 Recoil Reduction 2 Item Schematics ----------------- None Robot Schematics ------------------ None Fabricated ------------ Nothing Alien Tech Used ----------------- None Achievements -------------- None Challenges ------------ None Game ------ Seed IonicTargetingCorpse Manual? 0 Play Time 00:17:19 Cumulative 100.9 hours Start 2024.09.28 @ 09:57:28 End 2024.09.28 @ 10:14:39 Sessions 1 Manual Loads 0 Difficulty Rogue Special Mode None Game No. 119 Rogue 115 Adventurer 0 Explorer 4 Win Type - Total 6 Types 4/0/0/2/0/0/0/0/0 Lore% 44 Gallery% 64 Achievement% 57 Wizard Run 0 Options --------- Layout 0 ASCII 0 Keyboard 0 Movement Numpad Keybinds 0 Fullscreen 2 Font 18/SmallcapsGlow Map View 76x50 Zoom Use 0% Tactical HUD 1 Map Filters NONE Filters NONE Steam 1 RUN: 986063ed-3d10-4713-b92d-fab1c9c52239